{"text_format":"1","workbook":"xlsx","n_sheets":1,"sheets":["Sheet1"],"not_rendered":{"charts":0,"images":0,"macros":1,"external_links":0,"defined_names":0,"comments":0,"pivot_tables":0},"unopened":[],"bounds":{"document_bytes":16777216,"sheet_cells":100000,"rows_first":2000,"rows_last":500,"rows_between":2000,"halvings":0,"cell_chars":16384,"cell_head_chars":4096},"cells_cut":0,"cells_raw":0,"read":"whole","date_system":"1900"}

{"sheet":"Sheet1","index":0,"n_rows":19,"n_cols":21,"rows_kept":19,"cut":false,"hidden":false,"merged":[]}
["the",1,null,{"$f":"RAND()","v":0.58303318948901417},"from",{"$f":"VLOOKUP(E1,$A$1:$B$18,2,0)","v":2},null,"words",{"$f":"COUNTA(E:E)","v":18},null,{"$f":"CONCATENATE(E1,\" \",E2,\" \",E3,\" \",E4,\" \",E5,\" \",E6)","v":"from cold lava steam bubbled vents"}]
["cold",1,null,{"$f":"RAND()","v":0.69515898111145447},"cold",1,null,"lines wanted",3,null,{"$f":"CONCATENATE(E7,\" \",E8,\" \",E9,\" \",E10,\" \",E11,\" \",E12)","v":"scalding icy frozen heat waves the"},null,null,null,null,null,"the cold lake water",null,null,"Poem 1"]
["lake",1,null,{"$f":"RAND()","v":0.61415376099823027},"lava",2,null,"words per line",{"$f":"I1/I2","v":6},null,{"$f":"CONCATENATE(E13,\" \",E14,\" \",E15,\" \",E16,\" \",E17,\" \",E18)","v":"boiled with shivered lake water blankets"},null,null,null,null,null,"shivered icy"]
["water",1,null,{"$f":"RAND()","v":0.62419807192739174},"steam",2,null,null,null,null,null,null,null,null,null,null,"with frozen blankets"]
["shivered",1,null,{"$f":"RAND()","v":5.7477135802073365E-2},"bubbled",2,null,null,null,null,"from cold lava steam bubbled vents"]
["icy",1,null,{"$f":"RAND()","v":0.44627014925856789},"vents",2,null,null,null,null,"scalding icy frozen heat waves the",null,null,null,null,null,"vents bubbled lava",null,null,"Poem 2"]
["with",1,null,{"$f":"RAND()","v":0.80921034267303571},"scalding",2,null,null,null,null,"boiled with shivered lake water blankets",null,null,null,null,null,"from scalding steam"]
["frozen",1,null,{"$f":"RAND()","v":0.17562266506774604},"icy",1,null,"Macro",null,null,null,null,null,null,null,null,"boiled heat waves"]
["blankets",1,null,{"$f":"RAND()","v":0.25140667587580756},"frozen",1,null,"Press control d"]
["vents",2,{"$f":"LEN(A10)","v":5},{"$f":"RAND()","v":9.5194533067292642E-2},"heat",2,null,"to shuffle, combine, and color",null,null,null,null,null,null,null,null,"with scalding water lakes boiled frozen",null,null,null,"Combined Poem"]
["bubbled",2,{"$f":"LEN(A11)","v":7},{"$f":"RAND()","v":0.22486513124950414},"waves",2,null,null,null,null,null,null,null,null,null,null,"vents bubbled cold steam blankets"]
["lava",2,4,{"$f":"RAND()","v":0.32692884573584824},"the",1,null,null,null,null,null,null,null,null,null,null,"from lava waves the icy heat shivered"]
["from",2,4,{"$f":"RAND()","v":0.24788156447649257},"boiled",2]
["scalding",2,8,{"$f":"RAND()","v":0.6976220560972366},"with",1]
["steam",2,5,{"$f":"RAND()","v":0.53621166178091562},"shivered",1,null,null,null,null,null,null,null,null,null,null,"like found poetry"]
["boiled",2,6,{"$f":"RAND()","v":0.15242873594459938},"lake",1,null,null,null,null,null,null,null,null,null,null,"combining two poems and making a found poem"]
["heat",2,4,{"$f":"RAND()","v":0.96457114174330194},"water",1,null,null,null,null,null,null,null,null,null,null,"but emphasizing original word source"]
["waves",2,5,{"$f":"RAND()","v":5.0614375085412222E-2},"blankets",1,null,null,null,null,null,null,null,null,null,null,"doesn't have to be so opposite in nature"]
[null,null,null,null,null,null,null,null,null,null,null,null,null,null,null,null,"can also just emphasize one or a few words, instead of all"]